bitfinex-derivatives/quotes_SOLF0:USTF0_20250829
["timestamp","ask_amount","ask_price","bid_price","bid_amount"]
[1756448525084,5.56708453,212.97,212.96,11.9755]
[1756448525284,5.56708453,212.97,212.96,134.3555]
[1756448525781,1.70450551,212.98,212.96,126.6055]
[1756448525982,1.70450551,212.98,212.97,7.75]
[1756448530282,1.70450551,212.99,212.98,11.3753]
[1756448530585,1.70450551,212.99,212.98,133.6753]
[1756448532187,1.70450551,212.99,212.98,133.6553]
[1756448532390,1.70450551,212.99,212.98,133.6353]
[1756448533388,1.70450551,212.99,212.98,11.3753]
[1756448533583,1.70450551,212.99,212.98,133.6353]
[1756448534088,1.70450551,212.99,212.98,11.3753]
[1756448534288,1.70450551,212.99,212.98,4.2253]
[1756448534289,9.17450551,212.99,212.98,4.2253]
[1756448534488,9.17450551,212.99,212.98,126.4453]
[1756448535688,9.17450551,212.99,212.98,4.2253]
[1756448536091,1.70450551,212.99,212.98,11.3753]
[1756448536886,0.02995566,213.0,212.99,7.15]
[1756448537190,0.02995566,213.0,212.99,129.35]
[1756448539989,0.02995566,213.0,212.99,7.15]
[1756448540191,0.02995566,213.0,212.99,129.29]
[1756448541989,0.02995566,213.0,212.99,129.23]
[1756448544491,0.02995566,213.0,212.99,7.15]
[1756448544788,0.02995566,213.0,212.99,129.19]
[1756448549185,1.70450551,213.08,213.01,4.2244]
[1756448549389,1.70450551,213.08,213.03,7.15]
[1756448549594,1.70450551,213.08,213.05,7.15]
[1756448549893,1.70450551,213.08,213.04,121.94]
[1756448550296,1.70450551,213.08,213.05,7.15]
[1756448550596,7.47,213.05,213.04,0.03152917]
[1756448551194,9.17450551,213.06,213.04,0.03152917]
[1756448553592,1.70450551,213.06,213.04,7.18152917]
[1756448556496,1.70450551,213.06,213.04,0.03152917]
[1756448556697,1.70450551,213.06,213.04,7.70152917]
[1756448558596,7.47,213.09,213.05,7.67]
[1756448558806,1.70450551,213.13,213.06,9.37450551]
[1756448559097,1.70450551,213.11,213.06,7.67]
[1756448559304,1.70450551,213.13,213.06,9.37450551]
[1756448559501,1.70450551,213.13,213.06,9.40996972]
[1756448561103,1.70450551,213.13,213.08,7.67]
[1756448561502,1.70450551,213.13,213.09,100.24]
[1756448561697,1.70450551,213.12,213.1,7.67]
[1756448562098,1.70450551,213.12,213.09,7.70311236]
[1756448562303,1.70450551,213.1,213.09,0.03311236]
[1756448562601,65.662,213.18,213.1,7.67]
[1756448562602,7.63,213.14,213.1,7.67]
[1756448562805,1.70450551,213.1,213.09,7.70311236]
[1756448564300,1.70450551,213.12,213.09,0.03311236]
[1756448564905,1.70450551,213.12,213.1,7.67]
[1756448565107,1.70450551,213.12,213.09,0.03311236]
[1756448565410,1.70450551,213.12,213.1,7.67]
[1756448565708,1.70450551,213.12,213.09,0.03311236]
[1756448566200,1.70450551,213.14,213.1,7.67]
[1756448566603,1.70450551,213.14,213.09,0.03311236]
[1756448566803,5.92620551,213.15,213.09,0.03311236]
[1756448567003,5.92620551,213.15,213.1,7.67]
[1756448567198,5.92620551,213.15,213.09,0.03311236]
[1756448567609,1.70450551,213.15,213.1,7.67]
[1756448567905,1.70450551,213.15,213.09,0.03311236]
[1756448568105,1.70450551,213.15,213.1,7.67]
[1756448568307,1.70450551,213.15,213.09,0.03311236]
[1756448568606,1.70450551,213.15,213.1,7.67]
[1756448569202,1.70450551,213.15,213.09,0.03311236]
[1756448569409,1.70450551,213.15,213.1,7.67]
[1756448570010,1.70450551,213.15,213.09,0.03311236]
[1756448570211,1.70450551,213.15,213.1,7.67]
[1756448570711,1.70450551,213.15,213.09,0.03311236]
[1756448571107,1.70450551,213.15,213.1,7.67]
[1756448571911,7.63,213.18,213.1,9.37450551]
[1756448572114,9.33450551,213.18,213.12,9.37450551]
[1756448572310,1.70450551,213.18,213.12,9.37450551]
[1756448572811,1.70450551,213.18,213.13,121.52]
[1756448573012,1.70450551,213.18,213.14,7.67]
[1756448573408,1.70450551,213.18,213.13,121.55315056]
[1756448573610,1.70450551,213.18,213.14,7.67]
[1756448574006,1.70450551,213.18,213.13,121.55315056]
[1756448574202,1.70450551,213.18,213.14,7.67]
[1756448574408,1.70450551,213.18,213.13,121.55315056]
[1756448574609,1.70450551,213.18,213.14,7.67]
[1756448574809,1.70450551,213.18,213.13,121.55315056]
[1756448575311,1.70450551,213.18,213.14,7.67]
[1756448575711,7.63,213.21,213.14,9.37450551]
[1756448576214,9.33450551,213.21,213.14,9.37450551]
[1756448576413,5.92510551,213.21,213.14,9.37450551]
[1756448577013,5.92510551,213.21,213.15,121.44]
[1756448577215,5.92510551,213.21,213.14,1.70450551]
[1756448577718,5.92510551,213.21,213.16,1.70450551]
[1756448577919,5.92510551,213.21,213.17,7.67]
[1756448578120,4.2206,213.21,213.17,7.67]
[1756448578425,1.70450551,213.22,213.17,7.67]
[1756448578718,4.22,213.24,213.18,1.70450551]
[1756448578719,5.92450551,213.24,213.18,1.70450551]
[1756448579110,4.22,213.24,213.19,23.1]
[1756448579716,9.33450551,213.25,213.2,7.67]
[1756448579916,73.2499,213.32,213.18,7.67]
[1756448580116,9.33450551,213.27,213.21,7.67]
[1756448580312,1.70450551,213.27,213.22,0.03142159]
[1756448580517,7.63,213.26,213.22,7.70142159]
[1756448581120,7.63,213.26,213.23,7.67]
[1756448581318,2.66156676,213.25,213.22,0.03142159]
[1756448582117,7.63,213.24,213.22,0.03142159]
[1756448582323,7.63,213.23,213.22,0.03142159]
[1756448585819,7.63,213.23,213.16,7.67]
[1756448586017,2.66156676,213.19,213.13,74.72]
[1756448586212,2.66156676,213.19,213.12,7.67]
[1756448586413,9.94156676,213.16,213.08,7.8]
[1756448586820,2.66156676,213.13,213.08,7.8]
[1756448587019,2.66156676,213.13,213.07,436.42]
[1756448587619,2.66156676,213.13,213.09,12.0227]
[1756448587821,2.66156676,213.13,213.09,4.2227]
[1756448588016,2.66156676,213.13,213.1,7.8]
[1756448588217,0.030986,213.14,213.09,4.2227]
[1756448588423,0.030986,213.14,213.1,7.8]
[1756448589820,0.030986,213.14,213.11,7.8]
[1756448592327,0.030986,213.14,213.12,7.8]
[1756448592526,0.030986,213.14,213.13,128.98]
[1756448593123,0.030986,213.14,213.13,7.8]
[1756448593429,0.030986,213.14,213.13,128.98]
[1756448593731,7.28,213.25,213.14,7.8]
[1756448594630,7.28,213.25,213.16,7.8]
[1756448594832,7.28,213.25,213.17,0.03498318]
[1756448595032,7.28,213.25,213.17,121.17498318]
[1756448595522,7.28,213.25,213.18,7.8]
[1756448597233,2.66156676,213.23,213.17,0.03498318]
[1756448597831,7.28,213.22,213.17,0.03498318]
[1756448598034,2.66156676,213.23,213.17,0.03498318]
[1756448598230,7.28,213.22,213.17,0.03498318]
[1756448598826,2.66156676,213.23,213.17,0.03498318]
[1756448601934,7.28,213.22,213.17,0.03498318]
[1756448602137,2.66156676,213.23,213.17,0.03498318]
[1756448602842,7.28,213.22,213.17,0.03498318]
[1756448603236,2.66156676,213.23,213.17,0.03498318]
[1756448604433,7.28,213.22,213.17,0.03498318]
[1756448605043,2.66156676,213.23,213.17,0.03498318]
[1756448605244,7.28,213.22,213.17,0.03498318]
[1756448605943,2.66156676,213.23,213.17,0.03498318]
[1756448607247,7.28,213.22,213.17,0.03498318]
[1756448607642,2.66156676,213.23,213.17,0.03498318]
[1756448608045,2.66156676,213.25,213.17,7.83498318]
[1756448609948,11.4997,213.26,213.17,7.83498318]
[1756448610146,2.66156676,213.25,213.17,7.83498318]
[1756448611746,7.28,213.24,213.17,7.83498318]
[1756448617053,14.31086676,213.27,213.17,7.83498318]
[1756448617350,10.09156676,213.27,213.17,7.8]
[1756448617551,10.09156676,213.27,213.2,7.24275414]
[1756448618748,4.2197,213.25,213.2,0.03275414]
[1756448618955,11.6497,213.25,213.21,7.21]
[1756448621061,2.66156676,213.24,213.2,0.03275414]
[1756448621359,7.43,213.23,213.2,0.03275414]
[1756448621950,2.66156676,213.24,213.2,0.03275414]
[1756448622261,7.43,213.23,213.2,0.03275414]
[1756448622654,2.66156676,213.24,213.2,0.03275414]
[1756448624055,7.43,213.23,213.2,0.03275414]
[1756448624258,2.66156676,213.24,213.2,0.03275414]
[1756448624562,7.43,213.23,213.2,0.03275414]
[1756448624957,2.66156676,213.24,213.2,0.03275414]
[1756448625464,7.43,213.23,213.2,0.03275414]
[1756448625656,2.66156676,213.24,213.2,0.03275414]
[1756448625860,7.43,213.23,213.2,0.03275414]
[1756448626063,2.66156676,213.24,213.2,0.03275414]
[1756448626666,7.43,213.23,213.2,0.03275414]
[1756448626966,2.66156676,213.24,213.2,0.03275414]
[1756448627165,7.43,213.23,213.2,0.03275414]
[1756448627569,2.66156676,213.24,213.2,0.03275414]
[1756448627965,7.43,213.23,213.2,0.03275414]
[1756448628370,2.66156676,213.24,213.2,0.03275414]
[1756448628571,7.43,213.23,213.2,0.03275414]
[1756448628971,2.66156676,213.24,213.2,0.03275414]
[1756448629171,7.43,213.23,213.2,0.03275414]
[1756448629369,2.66156676,213.24,213.2,0.03275414]
[1756448629770,7.43,213.23,213.2,0.03275414]
[1756448630171,2.66156676,213.24,213.2,0.03275414]
[1756448630372,7.43,213.23,213.2,7.24275414]
[1756448635472,2.66156676,213.24,213.2,7.24275414]
[1756448635868,7.43,213.23,213.2,7.24275414]
[1756448636065,2.66156676,213.24,213.2,7.24275414]
[1756448636270,7.43,213.23,213.2,7.24275414]
[1756448636773,2.66156676,213.24,213.2,7.24275414]
[1756448637870,7.43,213.23,213.2,7.24275414]
[1756448638375,2.66156676,213.24,213.2,7.24275414]
[1756448638575,10.09156676,213.21,213.13,12.48542137]
[1756448638875,7.43,213.2,213.13,12.48542137]
[1756448639376,7.43,213.2,213.13,16.70732137]
[1756448639771,7.46565117,213.19,213.15,7.21]
[1756448639970,7.46565117,213.19,213.14,5.27542137]
[1756448640367,0.03565117,213.19,213.14,5.27542137]
[1756448640972,0.03565117,213.19,213.15,7.21]
[1756448641175,0.03565117,213.19,213.14,5.27542137]
[1756448641473,0.03565117,213.19,213.15,7.21]
[1756448642079,0.03565117,213.19,213.14,5.27542137]
[1756448642579,0.03565117,213.19,213.14,125.71542137]
[1756448642775,7.46565117,213.19,213.15,7.21]
[1756448642976,7.46565117,213.19,213.14,125.71542137]
[1756448643580,7.46565117,213.19,213.15,7.21]
[1756448644676,7.46565117,213.19,213.14,125.71542137]
[1756448645182,7.46565117,213.19,213.15,7.21]
[1756448645583,7.46565117,213.19,213.15,120.42]
[1756448645779,7.46565117,213.19,213.16,7.21]
[1756448645978,0.03565117,213.19,213.15,120.4]
[1756448646178,7.46565117,213.19,213.15,127.61]
[1756448646383,7.46565117,213.19,213.16,7.1]
[1756448650583,0.03565117,213.19,213.15,125.67542137]
[1756448650783,0.03565117,213.19,213.16,7.1]
[1756448651887,0.03565117,213.19,213.15,125.67542137]
[1756448652080,0.03565117,213.19,213.16,7.1]
[1756448652482,0.03565117,213.19,213.15,125.67542137]
[1756448652682,0.03565117,213.19,213.15,123.67542137]
[1756448653285,0.03565117,213.19,213.16,7.1]
[1756448653788,0.03565117,213.19,213.15,123.67542137]
[1756448654482,0.03565117,213.19,213.16,7.1]
[1756448654686,0.03565117,213.19,213.15,123.67542137]
[1756448654883,0.03565117,213.19,213.16,7.1]
[1756448655884,0.03565117,213.19,213.17,120.26]
[1756448656081,0.03565117,213.19,213.17,127.36]
[1756448657593,0.03565117,213.19,213.18,7.1]
[1756448661092,7.72565117,213.19,213.17,120.26]
[1756448661395,0.03565117,213.19,213.18,7.1]
[1756448669405,0.03565117,213.19,213.18,127.16]
[1756448673502,4.25645117,213.19,213.18,127.16]
[1756448676304,4.25645117,213.19,213.18,7.1]
[1756448676510,4.25645117,213.19,213.18,127.04]
[1756448680713,4.25645117,213.19,213.18,7.1]
[1756448680914,4.25645117,213.19,213.18,126.96]
[1756448682912,4.25645117,213.19,213.18,126.94]
[1756448684913,4.25645117,213.19,213.18,126.9]
[1756448686216,4.25645117,213.19,213.18,7.1]
[1756448686411,4.25645117,213.19,213.18,126.9]
[1756448688411,5.96015295,213.19,213.18,126.9]
[1756448697030,5.96015295,213.19,213.18,126.72]
[1756448697825,4.25645117,213.19,213.18,126.72]
[1756448698325,4.25645117,213.19,213.13,7.18]
[1756448698528,4.25645117,213.19,213.14,119.58]
[1756448698826,4.25645117,213.19,213.15,7.18]
[1756448699021,4.25645117,213.19,213.16,119.58]
[1756448699221,4.25645117,213.19,213.17,7.18]
[1756448699423,4.25645117,213.19,213.18,126.76]
[1756448700626,5.96015295,213.19,213.18,126.76]
[1756448702829,5.96015295,213.19,213.18,7.18]
[1756448703029,5.96015295,213.19,213.18,126.72]
[1756448704432,5.96015295,213.19,213.18,7.18]
[1756448704732,5.96015295,213.19,213.18,126.7]
[1756448708237,5.96015295,213.19,213.18,7.18]
[1756448708534,5.96015295,213.19,213.18,126.64]
[1756448711537,5.96015295,213.19,213.18,7.18]
[1756448711837,5.96015295,213.19,213.18,126.58]
[1756448715039,5.96015295,213.19,213.18,7.18]
[1756448715438,5.96015295,213.19,213.18,126.5]
[1756448716443,5.96015295,213.19,213.18,7.18]
[1756448716637,5.96015295,213.19,213.18,126.48]
[1756448718040,4.25645117,213.19,213.18,126.48]
[1756448718342,5.96015295,213.19,213.18,126.48]
[1756448722849,5.96015295,213.19,213.18,7.18]
[1756448723044,5.96015295,213.19,213.18,126.38]
[1756448725248,4.25645117,213.19,213.18,126.38]
[1756448725448,5.96015295,213.19,213.18,126.38]
[1756448726147,5.96015295,213.19,213.18,7.18]
[1756448726347,5.96015295,213.19,213.18,126.34]
[1756448726544,5.96015295,213.19,213.18,126.32]
[1756448727850,5.96015295,213.19,213.18,126.3]
[1756448728052,5.96015295,213.19,213.18,7.18]
[1756448728257,5.96015295,213.19,213.18,126.3]
[1756448729352,4.25645117,213.19,213.18,7.18]
[1756448729549,5.96015295,213.19,213.18,7.18]
[1756448732753,5.96015295,213.19,213.16,119.04]
[1756448732754,4.2218,213.15,213.13,7.33]
[1756448732955,4.2218,213.15,213.14,126.37]
[1756448736255,4.2218,213.15,213.14,7.33]
[1756448736455,4.2218,213.15,213.14,126.31]
[1756448738259,5.92550178,213.15,213.14,126.31]
[1756448739153,5.92550178,213.15,213.14,7.33]
[1756448739360,5.92550178,213.15,213.14,126.31]
[1756448741458,5.92550178,213.15,213.14,7.33]
[1756448741658,5.92550178,213.15,213.14,76.23]
[1756448741859,5.92550178,213.15,213.14,7.33]
[1756448742054,5.92550178,213.15,213.14,76.17]
[1756448742254,5.92550178,213.15,213.14,7.33]
[1756448742453,5.92550178,213.15,213.14,126.23]
[1756448743158,4.2218,213.15,213.14,126.23]
[1756448743358,5.92550178,213.15,213.14,126.23]
[1756448744860,4.2218,213.15,213.14,126.23]
[1756448745159,5.92550178,213.15,213.14,126.23]
[1756448746160,5.92550178,213.15,213.14,7.33]
[1756448746360,5.92550178,213.15,213.14,75.65]
[1756448746658,5.92550178,213.15,213.14,126.17]
[1756448756274,5.92550178,213.15,213.14,7.33]
[1756448756468,5.92550178,213.15,213.14,72.65]
[1756448756772,5.92550178,213.15,213.14,7.33]
[1756448756964,5.92550178,213.15,213.14,126.01]
[1756448758072,4.2221,213.13,213.09,5.27542137]
[1756448758274,7.42,213.16,213.1,125.84]
[1756448758465,0.0342784,213.12,213.11,125.82]
[1756448759573,1.73798018,213.12,213.11,125.82]
[1756448759775,5.96038018,213.12,213.11,125.82]
[1756448765971,1.73798018,213.12,213.11,125.82]
[1756448767577,0.0342784,213.12,213.11,125.82]
[1756448767777,1.73798018,213.12,213.11,125.82]
[1756448767979,0.0342784,213.12,213.11,125.82]
[1756448769077,0.0342784,213.12,213.11,125.66]
[1756448773282,0.0342784,213.12,213.11,7.18]
[1756448773482,0.0342784,213.12,213.11,125.64]
[1756448777381,0.0342784,213.12,213.11,7.18]
[1756448777685,0.0342784,213.12,213.11,125.58]
[1756448778979,0.0342784,213.12,213.11,7.18]
[1756448779283,0.0342784,213.12,213.11,125.52]
[1756448781884,0.0342784,213.12,213.11,7.18]
[1756448782084,0.0342784,213.12,213.11,125.48]
[1756448782990,0.0342784,213.12,213.11,7.18]
[1756448783488,0.0342784,213.12,213.11,89.1]
[1756448783987,0.0342784,213.12,213.11,7.18]
[1756448784187,0.0342784,213.12,213.11,125.46]
[1756448784584,0.0342784,213.12,213.11,7.18]
[1756448784789,4.2565784,213.12,213.11,125.44]
[1756448790190,0.0342784,213.12,213.11,125.44]
[1756448792990,0.0342784,213.12,213.11,125.34]
[1756448798896,0.0342784,213.12,213.07,7.74]
[1756448799093,1.70370178,213.11,213.08,118.08]
[1756448799396,1.70370178,213.11,213.09,7.74]
[1756448799602,1.70370178,213.11,213.1,125.8]
[1756448801000,0.0342784,213.12,213.1,118.06]
[1756448801194,0.0342784,213.12,213.11,7.74]
[1756448806805,0.0342784,213.12,213.11,125.7]
[1756448807904,0.0342784,213.12,213.11,7.74]
[1756448808202,0.0342784,213.12,213.11,125.7]
[1756448810408,0.0342784,213.12,213.11,7.74]
[1756448810608,0.0342784,213.12,213.11,125.66]
[1756448814410,0.0342784,213.12,213.11,117.92]
[1756448814614,0.0342784,213.12,213.11,125.66]
[1756448817016,0.0342784,213.12,213.11,125.58]
[1756448818018,0.0342784,213.12,213.11,7.74]
[1756448818219,0.0342784,213.12,213.11,125.56]
[1756448818719,0.0342784,213.12,213.11,7.74]
[1756448818920,0.0342784,213.12,213.11,125.54]
[1756448819622,0.0342784,213.12,213.11,125.52]
[1756448822716,0.0342784,213.12,213.11,7.74]
[1756448822922,0.0342784,213.12,213.11,125.5]
[1756448824218,0.0342784,213.12,213.11,7.74]
[1756448824521,0.0342784,213.12,213.11,125.48]
[1756448831528,0.0342784,213.12,213.11,125.38]
[1756448831924,0.0342784,213.12,213.11,7.74]
[1756448832229,0.0342784,213.12,213.11,125.36]
[1756448838635,0.0342784,213.12,213.11,7.74]
[1756448838835,0.0342784,213.12,213.11,125.28]
[1756448841138,0.0342784,213.12,213.11,125.24]
[1756448841332,0.0342784,213.12,213.11,7.74]
[1756448841533,0.0342784,213.12,213.11,125.24]
[1756448843436,0.0342784,213.12,213.11,7.74]
[1756448843642,0.0342784,213.12,213.11,125.2]
[1756448847441,0.0342784,213.12,213.11,125.18]
[1756448851645,0.0342784,213.12,213.11,7.74]
[1756448851847,0.0342784,213.12,213.11,125.12]
[1756448858349,0.0342784,213.12,213.11,125.04]
[1756448859047,0.0342784,213.12,213.11,7.74]
[1756448859251,0.0342784,213.12,213.11,125.02]
[1756448863053,0.0342784,213.12,213.11,7.74]
[1756448863251,0.0342784,213.12,213.11,124.96]
[1756448864147,0.0342784,213.12,213.11,7.74]
[1756448864447,0.0342784,213.12,213.11,124.96]
[1756448864651,9.53798018,213.12,213.05,5.27542137]
[1756448864845,9.53798018,213.12,213.07,7.17]
[1756448865150,9.53798018,213.12,213.08,117.2]
[1756448865453,1.73798018,213.12,213.1,7.17]
[1756448865650,12.0226,213.11,213.1,117.2]
[1756448866648,12.0226,213.11,213.05,5.27542137]
[1756448866949,12.0226,213.11,213.07,7.17]
[1756448867149,7.8,213.1,213.08,124.35]
[1756448867345,1.70370178,213.09,213.08,7.17]
[1756448867545,1.70370178,213.09,213.08,124.35]
[1756448869554,5.92660178,213.09,213.08,7.17]
[1756448869853,5.92660178,213.09,213.08,124.33]
[1756448873154,5.92660178,213.09,213.03,122.48776878]
[1756448873355,5.92660178,213.09,213.04,117.12]
[1756448873550,5.92660178,213.09,213.05,7.17]
[1756448873752,5.92660178,213.09,213.07,7.17]
[1756448873953,5.92660178,213.09,213.08,124.29]
[1756448874355,1.70370178,213.09,213.08,124.29]
[1756448875857,1.70370178,213.09,213.08,117.12]
[1756448876058,1.70370178,213.09,213.08,124.29]
[1756448877855,4.2229,213.1,213.08,124.29]
[1756448878056,4.2229,213.1,213.09,7.17]
[1756448879055,4.2229,213.1,213.09,124.23]
[1756448879256,4.2229,213.1,213.04,5.27542137]
[1756448879456,4.2229,213.1,213.06,7.17]
[1756448879659,4.2229,213.1,213.08,7.17]
[1756448879854,4.2229,213.1,213.09,7.17]
[1756448880056,4.2229,213.1,213.09,124.21]
[1756448880855,4.2231,213.09,213.05,7.17]
[1756448881154,4.2231,213.09,213.06,117.04]
[1756448881859,4.2231,213.09,213.07,7.17]
[1756448882055,4.2231,213.09,213.08,117.02]
[1756448882257,4.2231,213.09,213.08,124.19]
[1756448885466,4.2231,213.09,213.08,7.17]
[1756448885765,4.2231,213.09,213.08,124.15]
[1756448887869,4.2231,213.09,213.08,7.17]
[1756448888173,4.2231,213.09,213.08,124.13]
[1756448891667,4.2231,213.09,213.08,7.17]
[1756448891971,4.2231,213.09,213.08,124.11]
[1756448894775,0.0342784,213.12,213.08,124.57]
[1756448894975,0.0342784,213.12,213.09,7.59]
[1756448895275,0.0342784,213.12,213.11,7.59]
[1756448895671,0.0342784,213.12,213.11,116.88]
[1756448895877,0.0342784,213.12,213.11,124.47]
[1756448896178,0.0342784,213.12,213.11,7.59]
[1756448896370,0.0342784,213.12,213.11,124.47]
[1756448896769,4.2565784,213.12,213.11,124.47]
[1756448898179,0.0342784,213.12,213.11,124.47]
[1756448898879,0.0342784,213.12,213.11,124.45]
[1756448901985,0.0342784,213.12,213.11,124.39]
[1756448904788,1.70370178,213.18,213.12,7.59]
[1756448904989,4.2213,213.17,213.14,7.59]
[1756448905290,4.2213,213.17,213.16,7.59]
[1756448908089,4.2213,213.17,213.16,124.33]
[1756448908289,4.2213,213.17,213.16,7.59]
[1756448908587,4.2213,213.17,213.16,53.47]
[1756448909989,1.70370178,213.18,213.16,53.47]
[1756448910188,1.70370178,213.18,213.17,7.59]
[1756448910697,4.221,213.19,213.16,45.88]
[1756448910895,4.221,213.19,213.17,7.59]
[1756448911096,4.221,213.19,213.16,45.88]
[1756448911297,4.221,213.19,213.14,0.03594452]
[1756448911497,4.221,213.19,213.16,7.59]
[1756448911898,4.2206,213.21,213.16,9.29370178]
[1756448912298,1.70370178,213.21,213.17,7.59]
[1756448912799,9.28370178,213.21,213.18,106.41]
[1756448913098,4.2213,213.17,213.16,116.71145383]
[1756448913798,4.2213,213.17,213.16,124.30145383]
[1756448914899,9.28370178,213.21,213.16,116.71145383]
[1756448915098,9.28370178,213.21,213.17,7.59]
[1756448915299,9.28370178,213.21,213.16,0.03145383]
[1756448915600,7.58,213.21,213.18,7.59]
[1756448916196,5.92420178,213.22,213.17,116.66]
[1756448916494,7.2,213.21,213.17,116.66]
[1756448916695,7.2,213.21,213.17,124.0]
[1756448917004,5.92420178,213.22,213.17,124.0]
[1756448917401,7.2,213.21,213.18,7.34]
[1756448919198,7.2,213.21,213.17,116.66]
[1756448919400,7.2,213.21,213.18,7.34]
[1756448920398,1.70370178,213.22,213.18,7.34]
[1756448920902,8.90370178,213.22,213.19,7.34]
[1756448921602,7.2,213.21,213.19,7.34]
[1756448922202,8.90370178,213.22,213.19,7.34]
[1756448922602,8.90370178,213.22,213.18,116.62]
[1756448922801,8.90370178,213.22,213.19,7.34]
[1756448926706,1.70370178,213.22,213.19,7.34]
[1756448926907,1.70370178,213.22,213.18,116.58]
[1756448927106,7.2,213.21,213.18,123.92]
[1756448927806,1.70370178,213.22,213.19,7.34]
[1756448928007,1.70370178,213.22,213.18,116.58]
[1756448928403,8.90370178,213.22,213.19,7.34]
[1756448928705,8.90370178,213.22,213.18,116.58]
[1756448928899,8.90370178,213.22,213.19,7.34]
[1756448929106,8.90370178,213.22,213.18,116.58]
[1756448929300,8.90370178,213.22,213.19,7.34]
[1756448929698,8.90370178,213.22,213.18,116.58]
[1756448929898,8.90370178,213.22,213.19,7.34]
[1756448930705,1.70370178,213.22,213.18,116.58]
[1756448930903,1.70370178,213.22,213.19,7.34]
[1756448931299,8.90370178,213.22,213.19,7.34]
[1756448932008,13.12420178,213.22,213.19,7.34]
[1756448932202,7.2,213.21,213.19,7.34]
[1756448933705,5.92420178,213.22,213.18,116.58]
[1756448934010,13.12420178,213.22,213.18,116.58]
[1756448934207,13.12420178,213.22,213.19,7.34]
[1756448934913,1.70370178,213.2,213.19,7.34]
[1756448936511,1.70370178,213.2,213.19,123.84]
[1756448937312,1.70370178,213.2,213.19,116.5]
[1756448937512,8.90370178,213.2,213.19,116.5]
[1756448937714,1.70370178,213.2,213.19,116.5]
[1756448937908,1.70370178,213.2,213.19,123.84]
[1756448938714,1.70370178,213.2,213.19,7.34]
[1756448939013,1.70370178,213.2,213.19,123.82]
[1756448939416,7.2,213.19,213.16,0.03145383]
[1756448939615,1.70370178,213.17,213.16,123.85145383]
[1756448939916,1.70370178,213.17,213.16,116.51145383]
[1756448940116,1.70370178,213.17,213.16,123.85145383]
[1756448940316,1.70370178,213.17,213.16,116.51145383]
[1756448940515,1.70370178,213.17,213.16,123.85145383]
[1756448940715,1.70370178,213.17,213.16,116.51145383]
[1756448940917,8.90370178,213.17,213.16,0.03145383]
[1756448943021,2.16370178,213.17,213.12,234.72420262]
[1756448943215,1.70370178,213.13,213.12,242.06420262]
[1756448943618,1.70370178,213.13,213.12,234.72420262]
[1756448947624,1.70370178,213.13,213.12,118.24420262]
[1756448947819,1.70370178,213.13,213.12,234.72420262]
[1756448948125,1.70370178,213.13,213.12,242.50420262]
[1756448952616,8.87370178,213.13,213.12,118.24420262]
[1756448953224,8.87370178,213.13,213.09,7.78]
[1756448953425,1.70370178,213.11,213.1,116.46]
[1756448953721,1.70370178,213.11,213.1,124.24]
[1756448954821,1.70370178,213.11,213.1,116.46]
[1756448955721,1.70370178,213.11,213.1,124.24]
[1756448956823,1.70370178,213.11,213.1,7.78]
[1756448957024,1.70370178,213.13,213.1,7.78]
[1756448957523,1.70370178,213.13,213.09,116.46]
[1756448957724,1.70370178,213.11,213.1,7.78]
[1756448963831,1.70370178,213.11,213.08,116.58]
[1756448964031,1.70370178,213.11,213.09,7.78]
[1756448964225,1.70370178,213.11,213.08,116.58]
[1756448965336,1.70370178,213.11,213.09,7.78]
[1756448965934,1.70370178,213.11,213.08,116.58]
[1756448966133,1.70370178,213.11,213.09,7.78]
[1756448966438,8.87370178,213.11,213.09,7.78]